[Event "*** SCC Grand Prix: Titled Tuesday Blitz"]
[Site "Chess.com"]
[Date "2020.07.14"]
[Round "7"]
[White "Haapana"]
[Black "andrzej"]
[Result "1-0"]
[WhiteElo "2341"]
[BlackElo "2194"]
[TimeControl "180+1"]
[EndTime "11:21:23 PDT"]
[Termination "Haapana won on time"]

1. d4 {[%clk 0:03:00.9]} 1... Nf6 {[%clk 0:02:58.9]} 2. c4 {[%clk 0:03:01]} 2...
e6 {[%clk 0:02:59.2]} 3. Nf3 {[%clk 0:03:01.1]} 3... b6 {[%clk 0:02:59.5]} 4. g3
{[%clk 0:03:01.1]} 4... Bb7 {[%clk 0:02:59.7]} 5. Bg2 {[%clk 0:03:01]} 5... c5
{[%clk 0:03:00.4]} 6. d5 {[%clk 0:02:59.7]} 6... exd5 {[%clk 0:03:01.3]} 7. Nh4
{[%clk 0:02:59.8]} 7... g6 {[%clk 0:03:00.6]} 8. cxd5 {[%clk 0:02:59.2]} 8...
Bg7 {[%clk 0:03:00.6]} 9. O-O {[%clk 0:02:56.7]} 9... O-O {[%clk 0:03:01.2]} 10.
e4 {[%clk 0:02:47.8]} 10... d6 {[%clk 0:03:01.3]} 11. Re1 {[%clk 0:02:45.1]}
11... Re8 {[%clk 0:03:00.9]} 12. Nc3 {[%clk 0:02:42.2]} 12... Nbd7 {[%clk
0:02:59.2]} 13. h3 {[%clk 0:02:34.8]} 13... a6 {[%clk 0:02:54.7]} 14. a4 {[%clk
0:02:33.3]} 14... Rc8 {[%clk 0:02:51.3]} 15. Nf3 {[%clk 0:02:29]} 15... c4
{[%clk 0:02:47.2]} 16. Bg5 {[%clk 0:01:33.8]} 16... h6 {[%clk 0:02:37.9]} 17.
Bf4 {[%clk 0:01:31.7]} 17... Nc5 {[%clk 0:02:32]} 18. e5 {[%clk 0:01:19.2]}
18... dxe5 {[%clk 0:02:31.7]} 19. Nxe5 {[%clk 0:01:19.4]} 19... Nh5 {[%clk
0:02:29.7]} 20. Nc6 {[%clk 0:01:16.8]} 20... Rxe1+ {[%clk 0:02:11.1]} 21. Qxe1
{[%clk 0:01:14.9]} 21... Bxc6 {[%clk 0:02:10.5]} 22. dxc6 {[%clk 0:01:15.3]}
22... Nxf4 {[%clk 0:02:10.3]} 23. gxf4 {[%clk 0:01:15.9]} 23... Nd3 {[%clk
0:02:09.5]} 24. Qe4 {[%clk 0:01:14.6]} 24... Nxb2 {[%clk 0:01:59.6]} 25. Nd5
{[%clk 0:01:14.3]} 25... Kh7 {[%clk 0:01:32.4]} 26. c7 {[%clk 0:01:01.8]} 26...
Rxc7 {[%clk 0:01:32.3]} 27. Nxc7 {[%clk 0:01:01.7]} 27... Qxc7 {[%clk
0:01:33.2]} 28. Rc1 {[%clk 0:00:54]} 28... b5 {[%clk 0:01:32.3]} 29. f5 {[%clk
0:00:54.3]} 29... Qe5 {[%clk 0:01:21.1]} 30. fxg6+ {[%clk 0:00:52.9]} 30... fxg6
{[%clk 0:01:21.4]} 31. axb5 {[%clk 0:00:52.7]} 31... Qxe4 {[%clk 0:01:18]} 32.
Bxe4 {[%clk 0:00:53.6]} 32... axb5 {[%clk 0:01:18.3]} 33. Ra1 {[%clk 0:00:51.3]}
33... Nd3 {[%clk 0:00:50.1]} 34. Ra6 {[%clk 0:00:47.6]} 34... Nf4 {[%clk
0:00:49.2]} 35. h4 {[%clk 0:00:45.6]} 35... h5 {[%clk 0:00:41.9]} 36. Rb6 {[%clk
0:00:45.3]} 36... Bd4 {[%clk 0:00:24.9]} 37. Rxb5 {[%clk 0:00:45]} 37... Nh3+
{[%clk 0:00:24.2]} 38. Kg2 {[%clk 0:00:42.4]} 38... Nxf2 {[%clk 0:00:24]} 39.
Rxh5+ {[%clk 0:00:33.8]} 39... Kg7 {[%clk 0:00:20.8]} 40. Rd5 {[%clk 0:00:34.7]}
40... Bb6 {[%clk 0:00:06.7]} 41. Bxg6 {[%clk 0:00:30]} 41... Ng4 {[%clk
0:00:04.4]} 42. Rd7+ {[%clk 0:00:29.4]} 42... Kxg6 {[%clk 0:00:01.8]} 43. Rd6+
{[%clk 0:00:29.7]} 43... Kh5 {[%clk 0:00:02]} 44. Rxb6 {[%clk 0:00:30]} 44...
Kxh4 {[%clk 0:00:02]} 45. Kf3 {[%clk 0:00:26.1]} 45... Ne5+ {[%clk 0:00:02]} 46.
Kf4 {[%clk 0:00:26.4]} 46... Nd3+ {[%clk 0:00:02.2]} 47. Ke3 {[%clk 0:00:23.1]}
47... Ne5 {[%clk 0:00:02.6]} 48. Re6 {[%clk 0:00:17]} 48... Nd3 {[%clk
0:00:02.8]} 49. Rg6 {[%clk 0:00:13.7]} 49... Kh5 {[%clk 0:00:02.9]} 50. Rg1
{[%clk 0:00:12.8]} 50... Ne5 {[%clk 0:00:03.3]} 51. Kf4 {[%clk 0:00:11.6]} 51...
Ng6+ {[%clk 0:00:02.2]} 52. Kf5 {[%clk 0:00:11.4]} 52... Nh4+ {[%clk 0:00:02.4]}
53. Kf6 {[%clk 0:00:11.9]} 53... c3 {[%clk 0:00:01.7]} 54. Rg5+ {[%clk
0:00:11.4]} 54... Kh6 {[%clk 0:00:01.6]} 55. Rc5 {[%clk 0:00:10.7]} 55... Ng2
{[%clk 0:00:01.5]} 56. Rxc3 {[%clk 0:00:09.8]} 56... Kh5 {[%clk 0:00:02]} 57.
Rg3 {[%clk 0:00:09.4]} 57... Nf4 {[%clk 0:00:01.8]} 58. Rg5+ {[%clk 0:00:07.7]}
58... Kh4 {[%clk 0:00:01.9]} 59. Kf5 {[%clk 0:00:08.6]} 59... Nh3 {[%clk
0:00:01.8]} 60. Rg4+ {[%clk 0:00:09.5]} 60... Kh5 {[%clk 0:00:02.2]} 61. Rg3
{[%clk 0:00:08.3]} 61... Kh4 {[%clk 0:00:01.8]} 62. Rf3 {[%clk 0:00:06.9]} 1-0

[Event "*** SCC Grand Prix: Titled Tuesday Blitz"]
[Site "Chess.com"]
[Date "2020.07.14"]
[Round "7"]
[White "mishikomchedlishvili"]
[Black "Colchonero64"]
[Result "0-1"]
[WhiteElo "2770"]
[BlackElo "2944"]
[TimeControl "180+1"]
[EndTime "11:21:25 PDT"]
[Termination "Colchonero64 won by resignation"]

1. d4 {[%clk 0:03:00.9]} 1... Nf6 {[%clk 0:02:59.1]} 2. g3 {[%clk 0:03:00.5]}
2... c5 {[%clk 0:02:57.7]} 3. d5 {[%clk 0:02:59.5]} 3... b5 {[%clk 0:02:52.9]}
4. Bg2 {[%clk 0:02:58.2]} 4... d6 {[%clk 0:02:50.3]} 5. e4 {[%clk 0:02:57.3]}
5... Nbd7 {[%clk 0:02:44.8]} 6. Ne2 {[%clk 0:02:54]} 6... g6 {[%clk 0:02:44.1]}
7. b3 {[%clk 0:02:53.6]} 7... Bg7 {[%clk 0:02:43.7]} 8. Bb2 {[%clk 0:02:53.8]}
8... O-O {[%clk 0:02:43.5]} 9. O-O {[%clk 0:02:51.5]} 9... Re8 {[%clk
0:02:38.6]} 10. Qc1 {[%clk 0:02:35.1]} 10... Bb7 {[%clk 0:02:36]} 11. c4 {[%clk
0:02:30.5]} 11... e6 {[%clk 0:02:26.6]} 12. Nf4 {[%clk 0:02:14.6]} 12... exd5
{[%clk 0:02:18.9]} 13. exd5 {[%clk 0:02:14.6]} 13... bxc4 {[%clk 0:02:15.6]} 14.
bxc4 {[%clk 0:02:14.3]} 14... Ne5 {[%clk 0:02:15.2]} 15. Qc2 {[%clk 0:02:08.8]}
15... Ba6 {[%clk 0:01:58.9]} 16. Nd2 {[%clk 0:02:05]} 16... h5 {[%clk
0:01:56.5]} 17. Rfe1 {[%clk 0:01:59.1]} 17... Nfd7 {[%clk 0:01:55.9]} 18. Rab1
{[%clk 0:01:52.1]} 18... Rb8 {[%clk 0:01:51.4]} 19. Ba1 {[%clk 0:01:38.7]} 19...
Rxb1 {[%clk 0:01:49.2]} 20. Rxb1 {[%clk 0:01:38.6]} 20... Nb6 {[%clk 0:01:42.4]}
21. Bxe5 {[%clk 0:01:33.2]} 21... Rxe5 {[%clk 0:01:40]} 22. Nd3 {[%clk
0:01:31.8]} 22... Re2 {[%clk 0:01:29.1]} 23. Bf1 {[%clk 0:01:28.1]} 23... Re7
{[%clk 0:01:27.7]} 24. Re1 {[%clk 0:01:20.3]} 24... h4 {[%clk 0:01:24]} 25. Re2
{[%clk 0:00:52]} 25... Qe8 {[%clk 0:01:15.6]} 26. Nc1 {[%clk 0:00:49]} 26...
Rxe2 {[%clk 0:01:10]} 27. Nxe2 {[%clk 0:00:48.3]} 27... Nxd5 {[%clk 0:01:04.2]}
28. cxd5 {[%clk 0:00:41.1]} 28... Bxe2 {[%clk 0:01:03.8]} 29. Qe4 {[%clk
0:00:39.5]} 29... Qxe4 {[%clk 0:00:40.1]} 30. Nxe4 {[%clk 0:00:40.1]} 30... Bf3
{[%clk 0:00:40.3]} 31. Bg2 {[%clk 0:00:32.6]} 31... Bxg2 {[%clk 0:00:36.1]} 32.
Kxg2 {[%clk 0:00:32.2]} 32... hxg3 {[%clk 0:00:32.3]} 33. hxg3 {[%clk
0:00:30.7]} 33... Bf8 {[%clk 0:00:23.9]} 34. g4 {[%clk 0:00:30.7]} 34... Be7
{[%clk 0:00:22.4]} 35. f4 {[%clk 0:00:28.2]} 35... Kf8 {[%clk 0:00:21.8]} 36.
Kf3 {[%clk 0:00:27.2]} 36... Kg7 {[%clk 0:00:20.1]} 37. f5 {[%clk 0:00:26.1]}
37... gxf5 {[%clk 0:00:16.1]} 38. gxf5 {[%clk 0:00:26.1]} 38... Kh6 {[%clk
0:00:15.7]} 39. Kg4 {[%clk 0:00:25.3]} 39... c4 {[%clk 0:00:15.3]} 40. Kf4
{[%clk 0:00:13.8]} 40... Kh5 {[%clk 0:00:14.5]} 41. f6 {[%clk 0:00:14.1]} 41...
Bf8 {[%clk 0:00:12.8]} 42. Ke3 {[%clk 0:00:13.2]} 42... Kg4 {[%clk 0:00:12.1]}
43. Kd4 {[%clk 0:00:13]} 43... Kf5 {[%clk 0:00:11.3]} 44. Nc3 {[%clk 0:00:12.4]}
44... Kg6 {[%clk 0:00:12.2]} 45. Nb5 {[%clk 0:00:12]} 45... a6 {[%clk
0:00:11.5]} 46. Nc7 {[%clk 0:00:11.9]} 46... a5 {[%clk 0:00:11.8]} 47. Ne8
{[%clk 0:00:10.8]} 47... Kf5 {[%clk 0:00:10.6]} 48. Kxc4 {[%clk 0:00:10.2]}
48... Ke5 {[%clk 0:00:10.4]} 49. a4 {[%clk 0:00:10.2]} 49... Bh6 {[%clk
0:00:09.6]} 50. Kb5 {[%clk 0:00:06.8]} 50... Kxd5 {[%clk 0:00:08.8]} 51. Kxa5
{[%clk 0:00:07]} 51... Kc6 {[%clk 0:00:08.7]} 52. Kb4 {[%clk 0:00:06.6]} 52...
d5 {[%clk 0:00:08.8]} 53. Kc3 {[%clk 0:00:05.4]} 53... Bg5 {[%clk 0:00:08.4]}
54. Kd3 {[%clk 0:00:05]} 54... Kd7 {[%clk 0:00:08.5]} 55. Ng7 {[%clk 0:00:05.1]}
55... Bxf6 {[%clk 0:00:08]} 56. Nf5 {[%clk 0:00:05.4]} 56... Kc6 {[%clk
0:00:08.1]} 57. Ne3 {[%clk 0:00:05.6]} 57... Kc5 {[%clk 0:00:08.3]} 58. a5
{[%clk 0:00:05]} 58... Bd8 {[%clk 0:00:08]} 59. a6 {[%clk 0:00:04.5]} 59... Bb6
{[%clk 0:00:08.1]} 60. Ng4 {[%clk 0:00:04.7]} 60... Kd6 {[%clk 0:00:07.7]} 61.
Nh6 {[%clk 0:00:04.8]} 61... Ke6 {[%clk 0:00:07.5]} 62. Ng4 {[%clk 0:00:05.4]}
62... f5 {[%clk 0:00:07.5]} 63. Ne3 {[%clk 0:00:06]} 63... f4 {[%clk 0:00:07.9]}
64. Nc2 {[%clk 0:00:06.3]} 64... Kd6 {[%clk 0:00:08]} 65. Nd4 {[%clk 0:00:06.3]}
65... Bxd4 {[%clk 0:00:05.5]} 66. Kxd4 {[%clk 0:00:05.6]} 66... Kc6 {[%clk
0:00:05.8]} 67. Kd3 {[%clk 0:00:04]} 67... Kb6 {[%clk 0:00:05.6]} 68. Ke2 {[%clk
0:00:03.9]} 68... d4 {[%clk 0:00:05.8]} 69. Kd3 {[%clk 0:00:03.7]} 69... f3
{[%clk 0:00:05.9]} 0-1

[Event "*** SCC Grand Prix: Titled Tuesday Blitz"]
[Site "Chess.com"]
[Date "2020.07.14"]
[Round "7"]
[White "annazero"]
[Black "Infernal_XaM"]
[Result "1-0"]
[WhiteElo "2395"]
[BlackElo "2954"]
[TimeControl "180+1"]
[EndTime "11:21:36 PDT"]
[Termination "annazero won by resignation"]

1. d4 {[%clk 0:03:00.9]} 1... Nf6 {[%clk 0:02:59.6]} 2. Nf3 {[%clk 0:03:00.7]}
2... b5 {[%clk 0:02:58.3]} 3. Bf4 {[%clk 0:02:58.5]} 3... Bb7 {[%clk 0:02:57.4]}
4. e3 {[%clk 0:02:58.8]} 4... a6 {[%clk 0:02:57]} 5. Nbd2 {[%clk 0:02:58.5]}
5... d6 {[%clk 0:02:56.7]} 6. h3 {[%clk 0:02:57.5]} 6... Nbd7 {[%clk 0:02:57.1]}
7. Bh2 {[%clk 0:02:56.9]} 7... g6 {[%clk 0:02:57]} 8. Bd3 {[%clk 0:02:56.6]}
8... Bg7 {[%clk 0:02:57.4]} 9. O-O {[%clk 0:02:56.6]} 9... c5 {[%clk 0:02:57.8]}
10. c3 {[%clk 0:02:54.9]} 10... O-O {[%clk 0:02:58.3]} 11. e4 {[%clk 0:02:46]}
11... cxd4 {[%clk 0:02:54.7]} 12. cxd4 {[%clk 0:02:46.9]} 12... Qb6 {[%clk
0:02:51.7]} 13. Qe2 {[%clk 0:02:34.3]} 13... Rfc8 {[%clk 0:02:44.1]} 14. a3
{[%clk 0:02:28.5]} 14... Ne8 {[%clk 0:02:37.1]} 15. e5 {[%clk 0:02:06.1]} 15...
dxe5 {[%clk 0:02:36.9]} 16. dxe5 {[%clk 0:02:07]} 16... Nc7 {[%clk 0:02:36.7]}
17. Be4 {[%clk 0:01:52.3]} 17... Ne6 {[%clk 0:02:34.3]} 18. Bxb7 {[%clk
0:01:51]} 18... Qxb7 {[%clk 0:02:34.3]} 19. Ne4 {[%clk 0:01:45.4]} 19... Ndc5
{[%clk 0:02:33.8]} 20. Nxc5 {[%clk 0:01:28.4]} 20... Rxc5 {[%clk 0:02:34.2]} 21.
Rac1 {[%clk 0:01:26.4]} 21... Rac8 {[%clk 0:02:32.7]} 22. Rxc5 {[%clk
0:01:25.7]} 22... Rxc5 {[%clk 0:02:33.6]} 23. Rd1 {[%clk 0:01:14.8]} 23... h5
{[%clk 0:02:32.7]} 24. Bg3 {[%clk 0:01:11.1]} 24... Bh6 {[%clk 0:02:31]} 25. Qd3
{[%clk 0:01:02.8]} 25... Qc6 {[%clk 0:02:23.9]} 26. Nd4 {[%clk 0:00:59.9]} 26...
Qd5 {[%clk 0:01:57.3]} 27. Nf5 {[%clk 0:00:41.1]} 27... Qxd3 {[%clk 0:01:56.9]}
28. Nxh6+ {[%clk 0:00:40.8]} 28... Kg7 {[%clk 0:01:57.3]} 29. Rxd3 {[%clk
0:00:41.5]} 29... Kxh6 {[%clk 0:01:57.6]} 30. Rd7 {[%clk 0:00:40.6]} 30... Rc7
{[%clk 0:01:57.7]} 31. Rxc7 {[%clk 0:00:37.7]} 31... Nxc7 {[%clk 0:01:58.6]} 32.
h4 {[%clk 0:00:31.1]} 32... Ne6 {[%clk 0:01:54.4]} 33. f3 {[%clk 0:00:26.6]}
33... Nc5 {[%clk 0:01:52.3]} 34. Bf2 {[%clk 0:00:24.8]} 34... Nd3 {[%clk
0:01:39.7]} 35. Bd4 {[%clk 0:00:24.1]} 35... Kg7 {[%clk 0:01:38.1]} 36. Kf1
{[%clk 0:00:22.6]} 36... Kf8 {[%clk 0:01:34.6]} 37. Ke2 {[%clk 0:00:21.9]} 37...
Nf4+ {[%clk 0:01:34.6]} 38. Kf2 {[%clk 0:00:21.6]} 38... Ke8 {[%clk 0:01:34.3]}
39. g3 {[%clk 0:00:21.4]} 39... Ne6 {[%clk 0:01:30.4]} 40. Bc3 {[%clk
0:00:21.1]} 40... Kd7 {[%clk 0:01:30.3]} 41. Ke3 {[%clk 0:00:20.4]} 41... Nc7
{[%clk 0:01:28.5]} 42. Ke4 {[%clk 0:00:18.7]} 42... Ke6 {[%clk 0:01:23.5]} 43.
g4 {[%clk 0:00:13.1]} 43... Nd5 {[%clk 0:01:21.2]} 44. Bd2 {[%clk 0:00:13]}
44... Nb6 {[%clk 0:01:13.5]} 45. gxh5 {[%clk 0:00:12.6]} 45... gxh5 {[%clk
0:01:00.7]} 46. f4 {[%clk 0:00:12.4]} 46... f5+ {[%clk 0:00:31.6]} 47. exf6
{[%clk 0:00:12.3]} 47... exf6 {[%clk 0:00:31.7]} 48. f5+ {[%clk 0:00:12.3]}
48... Ke7 {[%clk 0:00:31.8]} 49. Bb4+ {[%clk 0:00:11.9]} 49... Kd7 {[%clk
0:00:31.6]} 50. Bc3 {[%clk 0:00:11.6]} 50... Ke7 {[%clk 0:00:32.1]} 51. Kd4
{[%clk 0:00:11.4]} 51... Na4 {[%clk 0:00:30.7]} 52. Bb4+ {[%clk 0:00:09.7]}
52... Kd7 {[%clk 0:00:31.1]} 53. b3 {[%clk 0:00:09.8]} 53... Nb6 {[%clk
0:00:31.3]} 54. Bc5 {[%clk 0:00:09.6]} 54... Na8 {[%clk 0:00:30.4]} 55. Ke4
{[%clk 0:00:07.6]} 55... Nc7 {[%clk 0:00:30.5]} 56. Bd4 {[%clk 0:00:07.8]} 56...
Ne8 {[%clk 0:00:29.2]} 57. Kd5 {[%clk 0:00:07.2]} 57... Nd6 {[%clk 0:00:28.9]}
58. Bxf6 {[%clk 0:00:06.8]} 58... Nxf5 {[%clk 0:00:29.2]} 59. Ke5 {[%clk
0:00:05.7]} 59... Ne3 {[%clk 0:00:28.4]} 60. Ke4 {[%clk 0:00:04.6]} 60... Nc2
{[%clk 0:00:28.6]} 61. Kf5 {[%clk 0:00:04.6]} 61... Nxa3 {[%clk 0:00:26.9]} 62.
Kg6 {[%clk 0:00:04.7]} 62... Nc2 {[%clk 0:00:25.4]} 63. Kxh5 {[%clk 0:00:03.5]}
63... Ke6 {[%clk 0:00:26.3]} 64. Kg6 {[%clk 0:00:02.5]} 64... Ne3 {[%clk
0:00:25.5]} 65. h5 {[%clk 0:00:02.7]} 65... Nd5 {[%clk 0:00:26.2]} 66. Bg5
{[%clk 0:00:02.5]} 66... Nb4 {[%clk 0:00:23.7]} 67. h6 {[%clk 0:00:02.8]} 67...
Nc6 {[%clk 0:00:24.6]} 68. h7 {[%clk 0:00:03.3]} 68... Ne5+ {[%clk 0:00:24.9]}
69. Kg7 {[%clk 0:00:03.2]} 69... Nf7 {[%clk 0:00:25.1]} 70. Bf6 {[%clk
0:00:03.8]} 70... a5 {[%clk 0:00:25.2]} 71. Bc3 {[%clk 0:00:03.9]} 71... a4
{[%clk 0:00:24.4]} 72. bxa4 {[%clk 0:00:04.8]} 72... bxa4 {[%clk 0:00:24.6]} 73.
Bb2 {[%clk 0:00:05.4]} 73... Ke7 {[%clk 0:00:20.8]} 74. Ba3+ {[%clk 0:00:05.2]}
74... Ke6 {[%clk 0:00:21.3]} 75. Bb4 {[%clk 0:00:05.3]} 75... a3 {[%clk
0:00:16.5]} 76. Bxa3 {[%clk 0:00:05.1]} 1-0

[Event "*** SCC Grand Prix: Titled Tuesday Blitz"]
[Site "Chess.com"]
[Date "2020.07.14"]
[Round "7"]
[White "mjray79"]
[Black "TheNextLevelFan"]
[Result "1/2-1/2"]
[WhiteElo "2345"]
[BlackElo "2523"]
[TimeControl "180+1"]
[EndTime "11:21:38 PDT"]
[Termination "Game drawn by repetition"]

1. d4 {[%clk 0:03:00.9]} 1... d5 {[%clk 0:02:58]} 2. c4 {[%clk 0:03:01.1]} 2...
dxc4 {[%clk 0:02:55.9]} 3. Nf3 {[%clk 0:03:00.9]} 3... Nf6 {[%clk 0:02:54.4]} 4.
g3 {[%clk 0:03:01.1]} 4... c5 {[%clk 0:02:52.3]} 5. Bg2 {[%clk 0:03:00.1]} 5...
Nc6 {[%clk 0:02:51.4]} 6. Qa4 {[%clk 0:02:52.6]} 6... Qa5+ {[%clk 0:02:38.4]} 7.
Qxa5 {[%clk 0:02:47.8]} 7... Nxa5 {[%clk 0:02:39.3]} 8. dxc5 {[%clk 0:02:46.6]}
8... e6 {[%clk 0:02:36.1]} 9. Ne5 {[%clk 0:02:33.1]} 9... Bxc5 {[%clk
0:02:19.7]} 10. Bd2 {[%clk 0:02:32.2]} 10... Bb6 {[%clk 0:02:15.3]} 11. Na3
{[%clk 0:02:28.1]} 11... O-O {[%clk 0:02:00.4]} 12. Naxc4 {[%clk 0:02:17.6]}
12... Nxc4 {[%clk 0:02:01.3]} 13. Nxc4 {[%clk 0:02:18]} 13... Bc7 {[%clk
0:02:00.3]} 14. O-O {[%clk 0:02:16.8]} 14... Rb8 {[%clk 0:02:00.1]} 15. a4
{[%clk 0:02:14.1]} 15... Bd7 {[%clk 0:01:53.5]} 16. Bc3 {[%clk 0:02:10.1]} 16...
Nd5 {[%clk 0:01:52.1]} 17. Bd4 {[%clk 0:02:06.3]} 17... b6 {[%clk 0:01:45.9]}
18. Ne3 {[%clk 0:02:00.9]} 18... Nxe3 {[%clk 0:01:43.7]} 19. Bxe3 {[%clk
0:02:01.8]} 19... Be5 {[%clk 0:01:40.1]} 20. Rfd1 {[%clk 0:01:50.7]} 20... Rfd8
{[%clk 0:01:39.2]} 21. Bd4 {[%clk 0:01:50.3]} 21... Bxd4 {[%clk 0:01:32]} 22.
Rxd4 {[%clk 0:01:51.2]} 22... Be8 {[%clk 0:01:25.6]} 23. Rxd8 {[%clk 0:01:43]}
23... Rxd8 {[%clk 0:01:26.5]} 24. Rc1 {[%clk 0:01:42.9]} 24... Bxa4 {[%clk
0:01:24.8]} 25. Rc7 {[%clk 0:01:40.6]} 25... a5 {[%clk 0:01:24]} 26. Rb7 {[%clk
0:01:37.8]} 26... b5 {[%clk 0:00:50.5]} 27. Bc6 {[%clk 0:01:37.5]} 27... Bb3
{[%clk 0:00:39.7]} 28. Rxb5 {[%clk 0:01:12.5]} 28... a4 {[%clk 0:00:36.8]} 29.
Rb4 {[%clk 0:01:06.8]} 29... g5 {[%clk 0:00:24.8]} 30. Bxa4 {[%clk 0:01:06.1]}
30... Rd1+ {[%clk 0:00:21.1]} 31. Kg2 {[%clk 0:01:03.1]} 31... Bxa4 {[%clk
0:00:20.4]} 32. Rxa4 {[%clk 0:01:02.6]} 32... Rd2 {[%clk 0:00:21.3]} 33. Rg4
{[%clk 0:00:55.2]} 33... h6 {[%clk 0:00:17.5]} 34. h4 {[%clk 0:00:54.8]} 34...
Rxb2 {[%clk 0:00:08.6]} 35. hxg5 {[%clk 0:00:53.7]} 35... hxg5 {[%clk
0:00:07.7]} 36. Rxg5+ {[%clk 0:00:54.6]} 36... Kf8 {[%clk 0:00:08.4]} 37. Kf3
{[%clk 0:00:54.5]} 37... Ke7 {[%clk 0:00:08.1]} 38. Ra5 {[%clk 0:00:54.7]} 38...
Kf6 {[%clk 0:00:08.5]} 39. g4 {[%clk 0:00:49.8]} 39... Kg6 {[%clk 0:00:08.3]}
40. e3 {[%clk 0:00:49.2]} 40... Rb3 {[%clk 0:00:08.7]} 41. Kg3 {[%clk
0:00:48.9]} 41... Rb2 {[%clk 0:00:09.1]} 42. Ra6 {[%clk 0:00:48.5]} 42... Rb3
{[%clk 0:00:09.4]} 43. Ra7 {[%clk 0:00:47.4]} 43... Kf6 {[%clk 0:00:09.7]} 44.
Kf4 {[%clk 0:00:46.6]} 44... Kg6 {[%clk 0:00:10.1]} 45. Ke5 {[%clk 0:00:43]}
45... Rb5+ {[%clk 0:00:09.6]} 46. Kf4 {[%clk 0:00:42.7]} 46... Rb4+ {[%clk
0:00:09.7]} 47. e4 {[%clk 0:00:42.3]} 47... Rb2 {[%clk 0:00:09.7]} 48. f3 {[%clk
0:00:42.1]} 48... Rb3 {[%clk 0:00:10.2]} 49. Re7 {[%clk 0:00:40.2]} 49... Kf6
{[%clk 0:00:09.8]} 50. Re8 {[%clk 0:00:38.5]} 50... Kg6 {[%clk 0:00:09]} 51. g5
{[%clk 0:00:35.8]} 51... Kg7 {[%clk 0:00:07.9]} 52. Ra8 {[%clk 0:00:34.5]} 52...
Kg6 {[%clk 0:00:05.6]} 53. Kg4 {[%clk 0:00:33.7]} 53... Kg7 {[%clk 0:00:05.7]}
54. f4 {[%clk 0:00:33.3]} 54... Rb4 {[%clk 0:00:06.1]} 55. e5 {[%clk 0:00:27.3]}
55... Rc4 {[%clk 0:00:05.6]} 56. Ra3 {[%clk 0:00:26]} 56... Rd4 {[%clk
0:00:05.8]} 57. Rg3 {[%clk 0:00:25.7]} 57... Rc4 {[%clk 0:00:06.2]} 58. Rf3
{[%clk 0:00:25.6]} 58... Kg6 {[%clk 0:00:06.1]} 59. Kg3 {[%clk 0:00:24.7]} 59...
Rd4 {[%clk 0:00:06.3]} 60. Ra3 {[%clk 0:00:24.4]} 60... Re4 {[%clk 0:00:05.7]}
61. Ra1 {[%clk 0:00:23.8]} 61... Re3+ {[%clk 0:00:05.9]} 62. Kg4 {[%clk
0:00:23.3]} 62... Re4 {[%clk 0:00:06.2]} 63. Rh1 {[%clk 0:00:23.5]} 63... Rc4
{[%clk 0:00:06.3]} 64. Rh6+ {[%clk 0:00:23.3]} 64... Kg7 {[%clk 0:00:07.2]} 65.
Rf6 {[%clk 0:00:22.6]} 65... Rc6 {[%clk 0:00:06.2]} 66. f5 {[%clk 0:00:20.2]}
66... exf5+ {[%clk 0:00:05.8]} 67. Kxf5 {[%clk 0:00:21.1]} 67... Rc1 {[%clk
0:00:04.3]} 68. Ra6 {[%clk 0:00:20.4]} 68... Rf1+ {[%clk 0:00:04]} 69. Kg4
{[%clk 0:00:20.3]} 69... Re1 {[%clk 0:00:04.9]} 70. Kf4 {[%clk 0:00:20.1]} 70...
Rf1+ {[%clk 0:00:05.1]} 71. Kg4 {[%clk 0:00:19.8]} 71... Re1 {[%clk 0:00:06]}
72. Ra5 {[%clk 0:00:20.2]} 72... Rf1 {[%clk 0:00:06]} 73. Ra7 {[%clk 0:00:18.2]}
73... Rg1+ {[%clk 0:00:06.3]} 74. Kf4 {[%clk 0:00:17.8]} 74... Re1 {[%clk
0:00:07.2]} 75. Re7 {[%clk 0:00:16.5]} 75... Kg6 {[%clk 0:00:06.7]} 76. Ra7
{[%clk 0:00:15.4]} 76... Rf1+ {[%clk 0:00:07.1]} 77. Kg4 {[%clk 0:00:15.2]}
77... Rg1+ {[%clk 0:00:07.5]} 78. Kh4 {[%clk 0:00:15.1]} 78... Rh1+ {[%clk
0:00:07.7]} 79. Kg4 {[%clk 0:00:13.7]} 79... Rg1+ {[%clk 0:00:08.6]} 80. Kf4
{[%clk 0:00:13.5]} 80... Rf1+ {[%clk 0:00:09]} 81. Kg4 {[%clk 0:00:12.7]} 81...
Rg1+ {[%clk 0:00:09.2]} 1/2-1/2